bitfinex/quotes_BTCUSD_20251230
["timestamp","ask_amount","ask_price","bid_price","bid_amount"]
[1767084942425,0.01138122,87864.0,87856.0,3.2e-07]
[1767084942861,0.01138135,87863.0,87856.0,3.2e-07]
[1767084943128,0.01138122,87864.0,87856.0,3.2e-07]
[1767084943333,0.01138135,87863.0,87856.0,3.2e-07]
[1767084944426,0.01138148,87862.0,87856.0,3.2e-07]
[1767084944632,0.01138135,87863.0,87856.0,3.2e-07]
[1767084945751,0.01138148,87862.0,87856.0,3.2e-07]
[1767084945914,0.01138135,87863.0,87856.0,3.2e-07]
[1767084946462,0.01138122,87864.0,87856.0,3.2e-07]
[1767084947036,0.01138135,87863.0,87856.0,3.2e-07]
[1767084947261,0.01138122,87864.0,87850.0,0.51362694]
[1767084947262,0.01138226,87856.0,87850.0,0.51362694]
[1767084947469,0.01138213,87857.0,87846.0,0.51362694]
[1767084947639,0.01138226,87856.0,87846.0,0.51367587]
[1767084948049,0.01138213,87857.0,87846.0,0.51367587]
[1767084948681,0.05691345,87853.0,87840.0,0.0001582]
[1767084948854,0.000164,87846.0,87840.0,0.51378514]
[1767084949061,0.01138278,87852.0,87840.0,0.0001582]
[1767084949242,0.01143156,87853.0,87842.0,0.51362694]
[1767084949780,4.891e-05,87853.0,87842.0,0.51362694]
[1767084949924,4.891e-05,87853.0,87843.0,0.01138394]
[1767084950348,4.891e-05,87853.0,87844.0,0.01138381]
[1767084950568,4.891e-05,87853.0,87843.0,0.01138394]
[1767084950982,4.891e-05,87853.0,87842.0,0.52501101]
[1767084951492,4.891e-05,87853.0,87843.0,0.01138394]
[1767084951626,4.891e-05,87853.0,87842.0,0.52501101]
[1767084951627,4.891e-05,87853.0,87842.0,0.51362694]
[1767084952809,0.01138278,87852.0,87840.0,0.51378514]
[1767084952957,0.01138278,87852.0,87840.0,0.52516947]
[1767084953152,0.0113829,87851.0,87840.0,0.51378514]
[1767084954011,0.01138303,87850.0,87840.0,0.0001582]
[1767084954275,0.01138316,87849.0,87840.0,0.0001582]
[1767084954690,0.01138329,87848.0,87840.0,0.0001582]
[1767084954917,0.01138316,87849.0,87840.0,0.0001582]
[1767084955507,0.51362694,87850.0,87840.0,0.0001582]
[1767084955946,0.01138278,87852.0,87840.0,0.0001582]
[1767084956098,0.0113829,87851.0,87840.0,0.0001582]
[1767084956299,0.01138303,87850.0,87840.0,0.0001582]
[1767084956495,4.891e-05,87853.0,87840.0,0.0001582]
[1767084956698,0.01138278,87852.0,87840.0,0.0001582]
[1767084956918,4.891e-05,87853.0,87840.0,0.0001582]
[1767084957146,0.01143156,87853.0,87840.0,0.01154253]
[1767084957299,4.891e-05,87853.0,87841.0,0.0113842]
[1767084958243,0.01143156,87853.0,87840.0,0.01154253]
[1767084958608,4.891e-05,87853.0,87841.0,0.0113842]
[1767084959994,0.01138278,87852.0,87840.0,0.0001582]
[1767084960200,4.891e-05,87853.0,87840.0,0.01154253]
[1767084960875,0.01143156,87853.0,87840.0,0.01154253]
[1767084961080,0.01138278,87852.0,87840.0,0.01154253]
[1767084961283,0.01138278,87852.0,87840.0,0.0001582]
[1767084961485,0.01138278,87852.0,87840.0,0.01154253]
[1767084961641,0.01138278,87852.0,87840.0,0.0001582]
[1767084961845,0.51362694,87850.0,87840.0,0.0001582]
[1767084962052,0.51362694,87850.0,87840.0,0.01154253]
[1767084962276,0.51362694,87850.0,87840.0,0.0001582]
[1767084963276,0.01138355,87846.0,87840.0,0.0001582]
[1767084963430,0.01138355,87846.0,87840.0,2e-07]
[1767084963856,0.01138342,87847.0,87840.0,2e-07]
[1767084964205,0.0114,87848.0,87840.0,2e-07]
[1767084977710,0.0114,87848.0,87840.0,0.01138453]
[1767084978015,0.0114,87848.0,87840.0,2e-07]
[1767084981114,0.0114,87848.0,87832.0,0.0001459]
[1767084981115,0.01138355,87846.0,87832.0,0.0001459]
[1767084981286,0.0114,87848.0,87832.0,0.0001459]
[1767084981287,0.000556,87834.0,87832.0,0.0001459]
[1767084981686,0.52501101,87842.0,87832.0,0.0001459]
[1767084981889,0.0113842,87841.0,87832.0,0.0001459]
[1767084982207,0.0227842,87841.0,87832.0,0.0001459]
[1767084982411,0.01138433,87840.0,87832.0,0.0001459]
[1767084982613,0.0227842,87841.0,87832.0,0.0001459]
[1767084982789,0.01138433,87840.0,87832.0,0.0001459]
[1767084982994,0.01138446,87839.0,87832.0,0.0001459]
[1767084983395,0.01138485,87836.0,87832.0,0.0001459]
[1767084983595,0.01138485,87836.0,87832.0,9e-07]
[1767084984017,0.01018471,87837.0,87832.0,9e-07]
[1767084984225,0.01138485,87836.0,87824.0,0.0114]
[1767084984430,0.01138485,87836.0,87824.0,0.0227864]
[1767084984628,0.01138485,87836.0,87824.0,0.0114]
[1767084984834,0.01138498,87835.0,87824.0,0.0114]
[1767084985033,0.01138537,87832.0,87824.0,0.0114]
[1767084985265,0.01138511,87834.0,87824.0,0.0114]
[1767084986671,0.01138498,87835.0,87824.0,0.0114]
[1767084987232,0.01138511,87834.0,87824.0,0.0114]
[1767084987790,0.01138537,87832.0,87821.0,0.0114]
[1767084987942,0.01138524,87833.0,87821.0,0.0114]
[1767084988126,0.01138537,87832.0,87821.0,0.0114]
[1767084988655,0.0113855,87831.0,87821.0,0.0114]
[1767084988879,0.01138524,87833.0,87821.0,0.0114]
[1767084989080,0.01138537,87832.0,87821.0,0.0114]
[1767084990011,0.0113855,87831.0,87821.0,0.0114]
[1767084990161,0.0113855,87831.0,87756.0,0.26234827]
[1767084990162,0.06831348,87831.0,87815.0,0.05693787]
[1767084990363,0.01138563,87830.0,87817.0,0.0114]
[1767084990595,0.01138576,87829.0,87817.0,0.02278731]
[1767084990795,0.01138576,87829.0,87817.0,0.0114]
[1767084991031,0.01138589,87828.0,87817.0,0.0114]
[1767084991401,0.05692812,87831.0,87817.0,0.02278731]
[1767084991717,0.01138563,87830.0,87818.0,0.01138718]
[1767084991925,0.01138576,87829.0,87817.0,0.0114]
[1767084992587,0.06831191,87833.0,87818.0,0.01138718]
[1767084992871,0.01138537,87832.0,87820.0,0.5139608]
[1767084993307,0.01138563,87830.0,87820.0,0.5139608]
[1767084993680,0.0113855,87831.0,87820.0,0.5139608]
[1767084994002,0.01138576,87829.0,87817.0,0.02278731]
[1767084994148,0.01138589,87828.0,87817.0,0.0114]
[1767084994600,0.01138563,87830.0,87818.0,0.5139608]
[1767084994795,0.01138576,87829.0,87818.0,0.5139608]
[1767084995151,0.01138563,87830.0,87817.0,0.02278731]
[1767084995353,0.01138537,87832.0,87819.0,0.5139608]
[1767084995554,0.01138524,87833.0,87820.0,0.01138692]
[1767084995760,0.01138524,87833.0,87819.0,0.52534785]
[1767084995761,0.01138537,87832.0,87819.0,0.52534785]
[1767084995968,0.01138537,87832.0,87820.0,0.01138692]
[1767084996399,0.01138524,87833.0,87820.0,0.01138692]
[1767084996598,0.01138537,87832.0,87820.0,0.01138692]
[1767084996999,0.0113855,87831.0,87819.0,0.5139608]
[1767084997206,0.01138537,87832.0,87820.0,0.5139608]
[1767084997408,0.01138563,87830.0,87817.0,0.0114]
[1767084997654,0.01138576,87829.0,87820.0,0.5139608]
[1767084997974,0.01138563,87830.0,87820.0,0.5139608]
[1767084998195,0.01138576,87829.0,87820.0,0.5139608]
[1767084998590,0.0113855,87831.0,87820.0,0.5139608]
[1767084998838,0.01138576,87829.0,87820.0,0.5139608]
[1767084998972,0.0114,87834.0,87820.0,0.52534772]
[1767084999175,0.01138537,87832.0,87820.0,0.5139608]
[1767084999528,0.0113855,87831.0,87820.0,0.5139608]
[1767084999731,0.01138563,87830.0,87820.0,0.5139608]
[1767085000299,0.0113855,87831.0,87820.0,0.5139608]
[1767085000517,0.01138537,87832.0,87820.0,0.5139608]
[1767085001038,0.0113855,87831.0,87820.0,0.5139608]
[1767085002187,0.01138563,87830.0,87820.0,0.5139608]
[1767085002803,0.01138576,87829.0,87820.0,0.5139608]
[1767085003788,0.01138589,87828.0,87820.0,0.5139608]
[1767085004151,0.01138576,87829.0,87820.0,0.5139608]
[1767085005715,0.01138602,87827.0,87820.0,0.5139608]
[1767085006455,0.01138602,87827.0,87816.0,0.000281]
[1767085007302,0.01138589,87828.0,87827.0,0.000138]
[1767085007475,0.05692765,87831.0,87827.0,0.000138]
[1767085007678,0.01138576,87829.0,87827.0,0.000138]
[1767085007883,0.01138576,87829.0,87820.0,0.5139608]
[1767085008409,0.06831315,87831.0,87820.0,0.5139608]
[1767085008410,0.01138563,87830.0,87820.0,0.5139608]
[1767085008744,0.01138589,87828.0,87820.0,0.5139608]
[1767085009168,0.01138589,87828.0,87816.0,0.000281]
[1767085009378,0.01138576,87829.0,87818.0,0.5139608]
[1767085009906,0.01138563,87830.0,87818.0,0.5139608]
[1767085010083,0.01138589,87828.0,87818.0,0.5139608]
[1767085010270,0.01138602,87827.0,87818.0,0.5139608]
[1767085010472,0.01138589,87828.0,87818.0,0.5139608]
[1767085010668,0.01138576,87829.0,87818.0,0.5139608]
[1767085011138,0.0113855,87831.0,87818.0,0.5139608]
[1767085011332,0.01138563,87830.0,87818.0,0.5139608]
[1767085011522,0.01138589,87828.0,87818.0,0.5139608]
[1767085011725,0.01138576,87829.0,87818.0,0.5139608]
[1767085011879,0.01138563,87830.0,87818.0,0.5139608]
[1767085012762,0.01138563,87830.0,87818.0,0.52534798]
[1767085012916,0.01138563,87830.0,87818.0,0.5139608]
[1767085013422,0.0113855,87831.0,87818.0,0.52534798]
[1767085013599,0.01138563,87830.0,87818.0,0.5139608]
[1767085014546,0.01138589,87828.0,87818.0,0.5139608]
[1767085014754,0.01138576,87829.0,87818.0,0.5139608]
[1767085014981,0.01138602,87827.0,87818.0,0.5139608]
[1767085015206,0.01138576,87829.0,87818.0,0.5139608]
[1767085015490,0.01138589,87828.0,87818.0,0.5139608]
[1767085016001,0.01138602,87827.0,87816.0,0.000281]
[1767085016416,0.01138589,87828.0,87816.0,0.000281]
[1767085016570,0.01138589,87828.0,87816.0,0.01166844]
[1767085016926,0.01138524,87833.0,87828.0,0.000138]
[1767085017127,0.0113855,87831.0,87828.0,0.000138]
[1767085017552,0.05692815,87830.0,87818.0,0.5139608]
[1767085017755,0.01138602,87827.0,87816.0,0.000281]
[1767085017895,0.15161589,87828.0,87816.0,0.000281]
[1767085018096,0.20854555,87828.0,87816.0,0.000281]
[1767085018333,0.01138602,87827.0,87816.0,0.000281]
[1767085018546,0.0113864,87824.0,87816.0,0.000281]
[1767085018746,0.01138653,87823.0,87816.0,0.000281]
[1767085019306,0.0113864,87824.0,87816.0,0.000281]
[1767085019736,0.01138653,87823.0,87816.0,0.00063946]
[1767085020290,0.0113864,87824.0,87816.0,0.00063946]
[1767085020439,0.19715959,87828.0,87824.0,0.000138]
[1767085020440,0.06831615,87827.0,87824.0,0.000138]
[1767085020646,0.01138627,87825.0,87816.0,0.00063946]
[1767085020968,0.01138614,87826.0,87816.0,0.00063946]
[1767085021123,0.01138627,87825.0,87816.0,0.00063946]
[1767085021747,0.01138614,87826.0,87816.0,0.00063946]
[1767085021927,0.01138627,87825.0,87816.0,0.00063946]
[1767085022145,0.01138614,87826.0,87816.0,0.00063946]
[1767085022369,0.01138602,87827.0,87816.0,0.00063946]
[1767085023322,0.15161589,87828.0,87816.0,0.00063946]
[1767085023461,0.01138602,87827.0,87816.0,0.00063946]
[1767085023644,0.06831632,87827.0,87816.0,0.00063946]
[1767085023994,0.01138614,87826.0,87816.0,0.00063946]
[1767085024370,0.14023,87828.0,87816.0,0.00063946]
[1767085024573,0.14023,87828.0,87826.0,0.000138]
[1767085024759,0.01138602,87827.0,87816.0,0.00063946]
[1767085025717,0.15161589,87828.0,87816.0,0.0120269]
[1767085027249,0.01138602,87827.0,87816.0,0.00063946]
[1767085027606,0.15161589,87828.0,87816.0,0.0120269]
[1767085027840,0.01138602,87827.0,87816.0,0.00063946]
[1767085028007,0.15161589,87828.0,87816.0,0.00063946]
[1767085028327,0.01138602,87827.0,87816.0,0.00063946]
[1767085028683,0.14023,87828.0,87817.0,0.01138731]
[1767085028884,0.14023,87828.0,87818.0,0.01138718]
[1767085029187,0.14023,87828.0,87816.0,0.0120269]
[1767085029611,0.14023,87828.0,87818.0,0.52534798]
[1767085029827,0.140092,87828.0,87821.0,0.01138679]
[1767085030433,0.02278511,87834.0,87821.0,0.01138679]
[1767085030622,0.01138537,87832.0,87819.0,0.01138705]
[1767085030822,0.01138537,87832.0,87820.0,0.01138692]
[1767085031262,0.0114,87834.0,87821.0,0.01138679]
[1767085031425,0.0114,87834.0,87822.0,0.01138666]
[1767085031624,0.02278511,87834.0,87820.0,0.068321]
[1767085032085,0.01138524,87833.0,87820.0,0.068321]
[1767085032487,0.01138524,87833.0,87819.0,0.01138705]
[1767085032623,0.01138537,87832.0,87820.0,0.01138692]
[1767085032823,0.07971106,87834.0,87821.0,0.06832078]
[1767085032824,0.0114,87834.0,87821.0,0.06832078]
[1767085033065,0.01138537,87832.0,87818.0,0.57089624]
[1767085033268,0.01138537,87832.0,87820.0,0.01138692]
[1767085033678,0.01138524,87833.0,87821.0,0.01138679]
[1767085033875,0.01138537,87832.0,87821.0,0.01138679]
[1767085034371,0.01138537,87832.0,87820.0,0.01138692]
[1767085034954,0.01138537,87832.0,87819.0,0.01138705]
[1767085035180,0.0113855,87831.0,87819.0,0.01138705]
[1767085035961,0.0113855,87831.0,87820.0,0.5139608]
[1767085036376,0.01138537,87832.0,87820.0,0.5139608]
[1767085037007,0.01138537,87832.0,87820.0,0.52534772]
[1767085038043,0.01138537,87832.0,87820.0,0.5139608]
[1767085038559,0.01138537,87832.0,87820.0,0.52534772]
[1767085038963,0.0113855,87831.0,87820.0,0.5139608]
[1767085039545,0.01138537,87832.0,87820.0,0.52534772]
[1767085040021,0.0113855,87831.0,87820.0,0.5139608]
[1767085041500,0.01138537,87832.0,87820.0,0.5139608]
[1767085041700,0.0113855,87831.0,87820.0,0.5139608]
[1767085041863,0.01138537,87832.0,87820.0,0.52534772]
[1767085042069,0.0113855,87831.0,87820.0,0.5139608]
[1767085042492,0.01138563,87830.0,87820.0,0.5139608]
[1767085042773,0.0113855,87831.0,87820.0,0.5139608]
[1767085043033,0.01138537,87832.0,87820.0,0.52534772]
[1767085043876,0.0113855,87831.0,87820.0,0.5139608]
[1767085044245,0.01138576,87829.0,87820.0,0.5139608]
[1767085044374,0.01138563,87830.0,87820.0,0.5139608]
[1767085045213,0.01138576,87829.0,87820.0,0.5139608]
[1767085045620,0.05692621,87833.0,87820.0,0.5139608]
[1767085045826,0.0113855,87831.0,87820.0,0.5139608]
[1767085046668,0.0113855,87831.0,87820.0,0.51397366]
[1767085046872,0.01138576,87829.0,87820.0,0.51397366]
[1767085047073,0.01138563,87830.0,87820.0,0.51397366]
[1767085047626,0.0113855,87831.0,87820.0,0.51397366]
[1767085047831,8.72e-05,87830.0,87820.0,0.51397366]
[1767085049309,0.01138576,87829.0,87820.0,0.51397366]
[1767085049508,0.01138589,87828.0,87820.0,0.51397366]
[1767085049653,0.01138602,87827.0,87818.0,0.51397366]
[1767085049859,0.01147309,87828.0,87818.0,0.51397366]
[1767085050068,8.72e-05,87828.0,87818.0,0.51397366]
[1767085050467,8.72e-05,87828.0,87818.0,0.52536084]
[1767085050707,8.72e-05,87828.0,87818.0,0.51397366]
[1767085051108,8.72e-05,87828.0,87818.0,0.52536084]
[1767085051308,8.72e-05,87828.0,87819.0,0.01138705]
[1767085051512,8.72e-05,87828.0,87818.0,0.52536084]
[1767085051739,8.72e-05,87828.0,87818.0,0.01138718]
[1767085052023,8.72e-05,87828.0,87819.0,0.01138705]
[1767085052431,8.72e-05,87828.0,87821.0,0.01138679]
[1767085052649,0.00991426,87834.0,87824.0,0.0113864]
[1767085052972,0.00991426,87834.0,87817.0,0.01138731]
[1767085052973,0.01138563,87830.0,87817.0,0.01138731]
[1767085053186,0.01138563,87830.0,87820.0,0.51397366]
[1767085053333,0.01138576,87829.0,87820.0,0.51397366]
[1767085054716,0.0113855,87831.0,87820.0,0.51397366]
[1767085054930,0.06684,87834.0,87820.0,0.51397366]
[1767085054931,0.01138524,87833.0,87820.0,0.51397366]
[1767085055138,0.01138537,87832.0,87820.0,0.51397366]
[1767085055373,0.0113855,87831.0,87820.0,0.51397366]
[1767085056084,0.01138563,87830.0,87820.0,0.51397366]
[1767085056299,0.01138576,87829.0,87820.0,0.51397366]
[1767085056494,0.01138576,87829.0,87816.0,0.0119459]
[1767085056654,0.01138576,87829.0,87819.0,0.51397366]
[1767085056869,0.01138589,87828.0,87817.0,0.01138731]
[1767085057278,0.01138589,87828.0,87816.0,0.0119459]
[1767085057879,0.01138589,87828.0,87817.0,0.0114]
[1767085058401,8.6e-05,87817.0,87816.0,0.00055846]
[1767085058695,0.01138627,87825.0,87816.0,0.00055846]
[1767085058903,0.01138653,87823.0,87816.0,0.00055846]
[1767085059042,0.0113864,87824.0,87816.0,0.00055846]
[1767085059242,0.01138614,87826.0,87816.0,0.00055846]
[1767085059455,0.0113864,87824.0,87816.0,0.00047246]
[1767085059658,0.01138653,87823.0,87816.0,0.00047246]
[1767085060147,0.16069679,87821.0,87816.0,0.00047246]
[1767085061115,0.01138679,87821.0,87816.0,0.00047246]
[1767085061321,0.14931,87820.0,87816.0,0.00047246]
[1767085062317,0.01138679,87821.0,87816.0,0.00047246]
[1767085063027,0.16069679,87821.0,87816.0,0.00047246]
[1767085063454,0.14931,87819.0,87816.0,0.00047246]
[1767085064252,0.01138653,87823.0,87816.0,0.00047246]
[1767085064640,0.01138679,87821.0,87816.0,0.00047246]
[1767085065373,0.01138666,87822.0,87816.0,0.00047246]
[1767085065553,0.0113864,87824.0,87816.0,0.00047246]
[1767085065746,0.01138666,87822.0,87816.0,0.00047246]
[1767085066647,0.0113864,87824.0,87816.0,0.00047246]
[1767085066884,0.01138653,87823.0,87816.0,0.00047246]
[1767085067236,0.217627,87826.0,87816.0,0.00047246]
[1767085067432,0.01138666,87822.0,87816.0,0.00047246]
[1767085067745,0.01138679,87821.0,87816.0,0.00047246]
[1767085067949,0.1499,87821.0,87816.0,0.00047246]
[1767085068443,0.0114,87827.0,87816.0,0.00047246]
[1767085068625,0.0114,87827.0,87821.0,0.000549]
[1767085068626,0.02278602,87827.0,87821.0,0.000549]
[1767085068848,0.02278602,87827.0,87816.0,0.00047246]
[1767085068995,0.01138614,87826.0,87816.0,0.00047246]
[1767085069332,0.01138627,87825.0,87816.0,0.00047246]
[1767085070839,0.0113864,87824.0,87816.0,0.00047246]
[1767085071342,0.01138627,87825.0,87816.0,0.00047246]
[1767085071540,0.01138614,87826.0,87816.0,0.00047246]
[1767085071742,0.01138627,87825.0,87816.0,0.00047246]
[1767085072359,0.01138614,87826.0,87816.0,0.00047246]
[1767085072539,0.01138627,87825.0,87816.0,0.00047246]
[1767085073039,0.01138614,87826.0,87816.0,0.00047246]
[1767085073208,0.01138627,87825.0,87816.0,0.00047246]
[1767085074357,0.0113864,87824.0,87816.0,0.00047246]
[1767085075212,0.01138627,87825.0,87816.0,0.00047246]
[1767085075386,0.02278602,87827.0,87816.0,0.00047246]
[1767085075684,0.01138627,87825.0,87816.0,0.00047246]
[1767085076161,0.01138614,87826.0,87816.0,0.00047246]
[1767085076760,0.02278602,87827.0,87816.0,0.00047246]
[1767085076969,0.02278602,87827.0,87817.0,0.51397366]
[1767085076970,0.0114,87827.0,87817.0,0.51397366]
[1767085077371,0.0114,87827.0,87817.0,0.52536097]
[1767085077755,0.0114,87827.0,87817.0,0.51397366]
[1767085077955,0.0114,87827.0,87817.0,0.52536097]
[1767085079122,0.0114,87827.0,87817.0,0.51397366]
[1767085079264,0.010851,87827.0,87818.0,0.01138718]
[1767085079464,0.010851,87827.0,87817.0,0.52536097]
[1767085080214,0.010851,87827.0,87817.0,0.51397366]
[1767085081512,0.010851,87827.0,87817.0,0.52536097]
[1767085081744,0.010851,87827.0,87817.0,0.51397366]
[1767085081981,0.02483954,87846.0,87830.0,0.14343]
[1767085082175,0.01138329,87848.0,87836.0,0.51397366]
[1767085082380,0.0001474,87851.0,87838.0,0.52535825]
[1767085082566,0.0001474,87851.0,87840.0,0.51397366]
[1767085083100,0.0115303,87851.0,87840.0,0.51397366]
[1767085083550,0.01138303,87850.0,87840.0,0.51397366]
[1767085083853,0.0001474,87851.0,87841.0,0.0113842]
[1767085084052,0.0001474,87851.0,87842.0,0.01138407]
[1767085084413,0.0001474,87851.0,87841.0,0.0113842]
[1767085084623,0.0001474,87851.0,87842.0,0.01138407]
[1767085084823,0.0001474,87851.0,87843.0,0.01138394]
[1767085085022,0.0001474,87851.0,87842.0,0.01138407]
[1767085085965,0.00019632,87851.0,87843.0,0.01138394]
[1767085086631,0.00019632,87851.0,87841.0,0.52535786]
[1767085087679,0.00019632,87851.0,87841.0,0.51397366]
[1767085087881,0.05690517,87866.0,87849.0,0.05691542]
[1767085088081,0.01138161,87861.0,87849.0,0.51397366]
[1767085088293,0.01138174,87860.0,87849.0,0.51397366]
[1767085088644,0.01138161,87861.0,87849.0,0.52535682]
[1767085089077,0.01138148,87862.0,87849.0,0.52535682]
[1767085089211,0.01138109,87865.0,87852.0,0.01138278]
[1767085089562,0.01138135,87863.0,87855.0,0.51397366]
[1767085089759,0.01138135,87863.0,87851.0,0.0113829]
[1767085090023,0.01138135,87863.0,87850.0,0.52535669]
[1767085090024,0.01138148,87862.0,87850.0,0.52535669]
[1767085090239,0.01138122,87864.0,87850.0,0.01138303]
[1767085090402,0.01138148,87862.0,87850.0,0.52535669]
[1767085090643,0.01138135,87863.0,87851.0,0.0113829]
[1767085090870,0.01138135,87863.0,87852.0,0.01138278]
[1767085091433,0.01138135,87863.0,87851.0,0.0113829]
[1767085091631,0.01138135,87863.0,87853.0,0.51397366]
[1767085092556,0.01138122,87864.0,87853.0,0.51397366]
[1767085092758,0.01138109,87865.0,87853.0,0.51397366]
[1767085092961,0.01138109,87865.0,87855.0,0.51397366]
[1767085093349,0.01138122,87864.0,87855.0,0.51397366]
[1767085094678,0.01138122,87864.0,87854.0,0.51397366]
[1767085096745,0.01138135,87863.0,87851.0,0.0113829]
[1767085096861,0.01138148,87862.0,87854.0,0.51397366]
[1767085097264,0.01138161,87861.0,87854.0,0.51397366]
[1767085097798,0.01138161,87861.0,87849.0,0.01138316]
[1767085098014,0.01138161,87861.0,87851.0,0.51397366]
[1767085098173,0.01138174,87860.0,87851.0,0.51397366]
[1767085098390,0.01138161,87861.0,87851.0,0.51397366]
[1767085100383,0.01138109,87865.0,87851.0,0.51397366]
[1767085100567,0.06828691,87865.0,87851.0,0.52535656]
[1767085100767,0.01138122,87864.0,87851.0,0.52535656]
[1767085100966,0.01138148,87862.0,87851.0,0.52535656]
[1767085101128,0.01138161,87861.0,87851.0,0.51397366]
[1767085101331,0.01138148,87862.0,87851.0,0.51397366]
[1767085101763,0.01138161,87861.0,87851.0,0.51397366]
[1767085102378,0.01138174,87860.0,87851.0,0.51397366]
[1767085102675,0.01138161,87861.0,87851.0,0.51397366]
[1767085103245,0.01138148,87862.0,87851.0,0.51397366]
[1767085103476,0.01138135,87863.0,87851.0,0.52535656]
[1767085104043,0.01138148,87862.0,87851.0,0.51397366]
[1767085104344,0.01138161,87861.0,87851.0,0.51397366]
[1767085106623,0.01138161,87861.0,87850.0,0.51355831]
[1767085109723,0.01138135,87863.0,87850.0,0.52494134]
[1767085109920,0.01138148,87862.0,87850.0,0.52494134]
[1767085110130,0.01138161,87861.0,87850.0,0.51355831]
[1767085110327,0.01138174,87860.0,87850.0,0.51355831]
[1767085111588,0.01138187,87859.0,87850.0,0.51355831]
[1767085111772,0.011382,87858.0,87850.0,0.51355831]
[1767085112272,0.06829212,87858.0,87850.0,0.51355831]
[1767085112473,0.01138213,87857.0,87850.0,0.51355831]
[1767085112633,0.011382,87858.0,87850.0,0.51355831]
[1767085112838,0.01138213,87857.0,87848.0,0.0114]
[1767085113054,0.011382,87858.0,87848.0,0.0114]
[1767085115200,0.06829104,87860.0,87837.0,0.0683082]
[1767085115201,0.01138265,87853.0,87837.0,0.0683082]
[1767085115400,0.01138265,87853.0,87842.0,2.295e-05]
[1767085115401,0.01193329,87848.0,87842.0,2.295e-05]
[1767085115579,0.00055,87848.0,87842.0,2.295e-05]
[1767085115901,0.14942,87848.0,87840.0,2.75e-06]
[1767085116130,0.14942,87848.0,87833.0,0.05692557]
[1767085116131,0.01138342,87847.0,87828.0,0.01138265]
[1767085116314,0.0114,87852.0,87830.0,0.52494394]
[1767085116315,0.0113842,87841.0,87830.0,0.52494394]
[1767085116475,0.0113842,87841.0,87830.0,0.51355831]
[1767085116976,0.0113842,87841.0,87830.0,0.52495831]
[1767085117161,0.01138407,87842.0,87830.0,0.52495831]
[1767085117357,0.01138407,87842.0,87830.0,0.53634394]
[1767085117565,0.05691776,87847.0,87830.0,0.53634394]
[1767085117566,0.0408985,87878.0,87862.0,0.01138148]
[1767085117787,1.13741163,87919.0,87868.0,0.51355831]
[1767085117788,0.0001043,87875.0,87868.0,0.51355831]
[1767085118482,0.0001043,87875.0,87870.0,0.01138044]
[1767085118678,0.0001043,87875.0,87871.0,0.0114]
[1767085124839,0.0001043,87875.0,87857.0,0.01137889]
[1767085125042,0.01193031,87871.0,87860.0,0.01138174]
[1767085125296,0.00055,87871.0,87860.0,0.52494005]
[1767085125443,0.0114841,87875.0,87861.0,0.01138161]
[1767085125637,0.0001043,87875.0,87862.0,0.05690742]
[1767085125864,0.0001043,87875.0,87865.0,0.01138109]
[1767085126066,0.0001043,87875.0,87866.0,0.0114]
[1767085126375,0.01137993,87874.0,87866.0,0.0114]
[1767085126690,0.0001043,87874.0,87866.0,0.0114]
[1767085128196,0.01148423,87874.0,87866.0,0.0114]
[1767085128411,0.0001043,87874.0,87866.0,0.0114]
[1767085128600,0.01148423,87874.0,87866.0,0.0114]
[1767085129007,0.0001043,87874.0,87866.0,0.02278096]
[1767085129438,0.0001043,87874.0,87866.0,0.0114]
[1767085129643,0.0001043,87874.0,87867.0,0.0114]
[1767085130204,0.0001043,87874.0,87867.0,0.02278083]
[1767085130634,0.0001043,87874.0,87867.0,0.0114]
[1767085130884,0.0001043,87874.0,87867.0,0.02278083]
[1767085131104,0.0001043,87874.0,87867.0,0.0114]
[1767085131263,0.0001043,87874.0,87867.0,0.02278083]
[1767085131450,0.0001043,87874.0,87867.0,0.0114]
[1767085131950,0.0001043,87874.0,87867.0,0.02278083]
[1767085133434,0.0001043,87874.0,87867.0,0.0114]
[1767085141470,0.01148423,87874.0,87867.0,0.0114]
[1767085141832,0.13519,87871.0,87866.0,0.0114]
[1767085142033,0.13519,87871.0,87864.0,0.0114]
[1767085142202,0.0002,87865.0,87864.0,0.0114]
[1767085142394,0.01148423,87874.0,87864.0,0.0114]
[1767085142395,0.0001043,87874.0,87864.0,0.0114]
[1767085143547,0.01138031,87871.0,87864.0,0.0114]
[1767085143764,0.01138005,87873.0,87864.0,0.0114]
[1767085144252,0.01138031,87871.0,87864.0,0.0114]
[1767085144820,0.01138018,87872.0,87864.0,0.0114]
[1767085145944,0.01138031,87871.0,87864.0,0.0114]
[1767085147211,0.01138018,87872.0,87864.0,0.0114]
[1767085147612,0.01138031,87871.0,87864.0,0.0114]
[1767085149021,0.01138018,87872.0,87864.0,0.0114]
[1767085149216,0.01138018,87872.0,87860.0,0.52494005]
[1767085149458,0.01138018,87872.0,87861.0,0.0114]
[1767085149868,0.01138031,87871.0,87861.0,0.0114]
[1767085150243,0.01138044,87870.0,87862.0,0.0114]
[1767085150625,0.01138031,87871.0,87862.0,0.0114]
[1767085151876,0.01138044,87870.0,87862.0,0.0114]
[1767085152242,0.01138031,87871.0,87862.0,0.0114]
[1767085152442,0.01138031,87871.0,87860.0,0.51355831]
[1767085152692,0.01138031,87871.0,87861.0,0.0114]
[1767085153185,0.0002,87861.0,87856.0,0.0114]
[1767085153341,0.0113807,87868.0,87857.0,0.0114]
[1767085153538,0.0113807,87868.0,87857.0,0.02278213]
[1767085154229,0.0113807,87868.0,87857.0,0.0114]
[1767085155012,0.01138083,87867.0,87857.0,0.0114]
[1767085155220,0.0113807,87868.0,87857.0,0.0114]
[1767085155358,0.01138083,87867.0,87857.0,0.0114]
[1767085155720,0.01138096,87866.0,87857.0,0.0114]
[1767085155910,0.01138083,87867.0,87857.0,0.0114]
[1767085156459,0.0113807,87868.0,87857.0,0.0114]
[1767085159574,0.01138083,87867.0,87857.0,0.0114]
[1767085159848,0.01138096,87866.0,87857.0,0.0114]
[1767085160053,0.01138083,87867.0,87857.0,0.0114]
[1767085160961,0.01138096,87866.0,87857.0,0.0114]
[1767085161389,0.01138083,87867.0,87857.0,0.0114]
[1767085163444,0.01138096,87866.0,87857.0,0.0114]
[1767085164193,0.01138096,87866.0,87857.0,0.01081021]
[1767085165562,0.01138083,87867.0,87857.0,0.01081021]
[1767085166546,0.01138096,87866.0,87857.0,0.52435369]
[1767085166678,0.01138083,87867.0,87857.0,0.52435369]
[1767085167348,0.0113807,87868.0,87857.0,0.52435369]
[1767085168594,0.0113807,87868.0,87857.0,0.53573582]
[1767085168797,0.0113807,87868.0,87857.0,0.52435369]
[1767085169027,0.0113807,87868.0,87857.0,0.53573582]
[1767085169339,0.01138044,87870.0,87857.0,0.53573582]
[1767085169477,0.0569011,87872.0,87868.0,0.000349]
[1767085169683,0.01138031,87871.0,87868.0,0.000349]
[1767085169884,0.01138044,87870.0,87860.0,0.51354348]
[1767085170319,0.01138018,87872.0,87860.0,0.51354348]
[1767085170518,0.01138044,87870.0,87860.0,0.51354348]
[1767085170940,0.01138057,87869.0,87861.0,0.0114]